bitfinex-derivatives/quotes_ETHF0:USTF0_20250321
["timestamp","ask_amount","ask_price","bid_price","bid_amount"]
[1742572165214,1.02471,1952.7,1952.6,2.40062]
[1742572165410,1.02471,1952.7,1952.6,43.20062]
[1742572166017,1.02471,1952.7,1952.6,40.8]
[1742572166816,1.02476,1952.6,1952.5,0.00767794]
[1742572167719,3.46367794,1952.8,1952.5,0.00767794]
[1742572168018,1.03234794,1952.8,1952.7,1.02471]
[1742572168322,0.00767794,1952.8,1952.7,1.02471]
[1742572168516,0.00767794,1952.8,1952.7,2.34241]
[1742572169717,0.00767794,1952.8,1952.7,3.01851]
[1742572171117,0.00767794,1952.8,1952.7,43.81851]
[1742572172226,1.02444,1953.3,1953.2,1.02442]
[1742572172421,4.91028,1953.4,1953.3,1.02439]
[1742572172726,1.02442,1953.3,1953.2,1.0244]
[1742572172912,1.02448,1953.2,1953.1,1.02446]
[1742572173521,1.03211794,1953.3,1953.2,1.02445]
[1742572173922,0.00767794,1953.3,1953.2,4.23225]
[1742572174724,0.00767794,1953.3,1953.2,7.68425]
[1742572175625,1.02423,1953.7,1953.6,1.02424]
[1742572176020,1.02434,1953.5,1953.4,4.47731]
[1742572176221,1.02442,1953.4,1953.2,3.456]
[1742572176425,1.02442,1953.4,1953.3,1.02439]
[1742572176623,1.02432,1953.5,1953.4,1.02429]
[1742572176826,0.00767794,1953.5,1953.3,5.76878]
[1742572177127,0.00767794,1953.5,1953.4,2.33094]
[1742572177827,0.00767794,1953.5,1953.4,5.78594]
[1742572178520,0.00767794,1953.5,1953.4,6.45184]
[1742572179426,1.72975,1954.0,1953.7,1.02419]
[1742572179726,1.3389,1953.9,1953.8,2.44343]
[1742572179927,1.3389,1953.9,1953.8,1.02413]
[1742572180226,5.76696,1954.7,1953.9,2.5602]
[1742572180429,0.643,1954.6,1954.2,2.55982]
[1742572180617,1.66671,1954.6,1954.5,1.02377]
[1742572180923,0.00767794,1954.6,1954.5,1.02377]
[1742572181320,0.00767794,1954.6,1954.5,4.23157]
[1742572181928,0.00767794,1954.6,1954.5,7.68757]
[1742572182622,1.02349,1955.1,1955.0,1.0235]
[1742572182823,1.02349,1955.1,1954.8,3.2078]
[1742572182824,1.2906,1955.1,1954.8,3.2078]
[1742572183023,2.31405,1955.1,1955.0,1.0235]
[1742572183227,1.2906,1955.1,1955.0,1.0235]
[1742572183421,1.2906,1955.1,1954.8,5.76681]
[1742572183422,1.02339,1955.3,1954.8,5.76681]
[1742572183621,2.314,1955.2,1955.1,1.02341]
[1742572183822,2.314,1955.2,1954.9,3.458]
[1742572183823,1.02346,1955.1,1955.0,1.02347]
[1742572184525,1.0235,1955.0,1954.9,4.48152]
[1742572184728,1.2906,1955.0,1954.9,4.48152]
[1742572185423,2.3141,1955.0,1954.9,4.48152]
[1742572185624,2.3141,1955.0,1954.9,4.48156]
[1742572185826,2.3141,1955.0,1954.9,3.458]
[1742572186021,2.3141,1955.0,1954.9,4.48156]
[1742572186227,2.3141,1955.0,1954.9,3.458]
[1742572186930,2.3141,1955.0,1954.6,1.02368]
[1742572186931,1.02366,1954.7,1954.6,1.02368]
[1742572187230,1.02366,1954.7,1954.6,4.47668]
[1742572188627,1.02366,1954.7,1954.6,3.453]
[1742572189227,1.02377,1954.5,1954.4,6.6598]
[1742572189427,3.97001,1954.6,1954.3,3.452]
[1742572189626,1.4107,1954.4,1954.3,4.47586]
[1742572190230,1.0237,1954.7,1954.6,1.02366]
[1742572190432,2.4344,1954.7,1954.6,1.02366]
[1742572190632,1.02371,1954.6,1954.5,3.451]
[1742572190834,1.02385,1954.4,1954.3,1.02384]
[1742572191033,1.02384,1954.4,1954.3,1.02383]
[1742572191329,2.43445,1954.6,1954.5,1.02377]
[1742572191528,1.4107,1954.6,1954.2,44.6901]
[1742572191731,1.02387,1954.3,1954.2,40.8]
[1742572191924,1.02392,1954.2,1954.1,0.00767794]
[1742572192129,1.02413,1953.8,1953.7,4.48415]
[1742572192331,1.02413,1953.8,1953.7,45.28415]
[1742572193429,1.02413,1953.8,1953.7,40.8]
[1742572193631,2.45063,1953.8,1953.7,40.8]
[1742572193938,2.45063,1953.8,1953.7,41.82419]
[1742572194528,2.45063,1953.8,1953.7,40.8]
[1742572194932,2.45063,1953.8,1953.7,41.82419]
[1742572195233,1.03179794,1953.9,1953.8,1.02413]
[1742572195432,2.36749794,1953.9,1953.8,1.02413]
[1742572196926,0.00767794,1953.9,1953.8,4.23193]
[1742572197938,0.00767794,1953.9,1953.8,45.03193]
[1742572198234,1.03175794,1953.9,1953.8,40.8]
[1742572198429,2.35395794,1953.9,1953.8,40.8]
[1742572200340,1.02419,1953.7,1953.6,0.00767794]
[1742572200842,2.35399794,1953.9,1953.8,1.02413]
[1742572201238,0.00767794,1953.9,1953.8,1.02413]
[1742572201430,0.00767794,1953.9,1953.8,4.90873]
[1742572201634,1.3863,1954.1,1954.0,1.02403]
[1742572201835,2.41028,1954.1,1954.0,1.02403]
[1742572202032,1.02403,1954.0,1953.9,2.38135]
[1742572202236,1.02403,1954.0,1953.9,1.3573]
[1742572202237,2.41033,1954.0,1953.9,1.3573]
[1742572202433,1.02413,1953.8,1953.7,4.48415]
[1742572202837,1.02413,1953.8,1953.7,5.84145]
[1742572203037,1.02419,1953.7,1953.6,44.01547794]
[1742572203242,1.02419,1953.7,1953.6,41.83191794]
[1742572203848,2.41047,1953.8,1953.7,1.02419]
[1742572204346,1.02419,1953.7,1953.6,1.03187794]
[1742572204540,2.32009,1953.7,1953.6,1.03187794]
[1742572205348,2.32009,1953.7,1953.6,0.00767794]
[1742572206346,5.78009,1953.7,1953.6,0.00767794]
[1742572208050,8.98789,1953.7,1953.6,0.00767794]
[1742572208248,5.78009,1953.7,1953.6,0.00767794]
[1742572210549,5.78009,1953.7,1953.6,1.03191794]
[1742572210848,5.78009,1953.7,1953.6,0.00767794]
[1742572211850,8.98789,1953.7,1953.6,0.00767794]
[1742572212047,5.78009,1953.7,1953.6,0.00767794]
[1742572212244,8.98789,1953.7,1953.6,0.00767794]
[1742572212445,5.78009,1953.7,1953.6,0.00767794]
[1742572212651,8.98789,1953.7,1953.6,0.00767794]
[1742572213048,6.47069,1953.7,1953.6,0.00767794]
[1742572213246,1.2959,1953.7,1953.6,1.03191794]
[1742572213446,2.32009,1953.7,1953.6,1.03191794]
[1742572213647,2.32009,1953.7,1953.6,0.00767794]
[1742572213952,2.32009,1953.7,1953.6,1.03191794]
[1742572214953,2.32009,1953.7,1953.6,0.00767794]
[1742572215155,2.32009,1953.7,1953.2,3.2078]
[1742572215156,1.02439,1953.4,1953.2,3.2078]
[1742572215453,2.5606,1953.6,1953.3,2.56098]
[1742572215454,1.0243,1953.6,1953.3,2.56098]
[1742572215653,1.0243,1953.6,1953.5,1.02424]
[1742572216157,1.0243,1953.6,1953.5,2.42044]
[1742572216949,2.39852,1953.7,1953.6,1.02424]
[1742572217156,1.3743,1953.7,1953.6,1.02424]
[1742572217450,1.03179794,1953.9,1953.8,1.02413]
[1742572217650,2.40609794,1953.9,1953.8,1.02413]
[1742572218753,2.40609794,1953.9,1953.6,4.232]
[1742572218754,1.02419,1953.7,1953.6,4.232]
[1742572218954,1.02419,1953.7,1953.6,2.3755]
[1742572219450,1.02417,1953.8,1953.7,1.02413]
[1742572219649,2.38427,1953.8,1953.7,1.3513]
[1742572219849,1.02424,1953.6,1953.5,0.6636]
[1742572220047,1.02429,1953.5,1953.4,1.35897794]
[1742572220251,2.38439,1953.5,1953.4,0.00767794]
[1742572222253,1.02445,1953.2,1953.1,1.3459]
[1742572222456,1.02445,1953.2,1953.1,2.3704]
[1742572222656,1.02445,1953.2,1953.1,42.1459]
[1742572222857,11.79266,1953.4,1953.1,2.3704]
[1742572222858,6.6708,1953.4,1953.1,2.3704]
[1742572223057,12.20609,1953.7,1953.6,30.69081]
[1742572223355,19.82757588,1953.7,1953.6,30.69081]
[1742572223559,20.14326654,1953.7,1953.6,30.69081]
[1742572223757,17.64326654,1953.7,1953.6,30.69081]
[1742572224455,14.18226654,1953.7,1953.6,31.71505]
[1742572224762,12.20609,1953.7,1953.6,30.69081]
[1742572225061,12.20609,1953.7,1953.6,31.98691]
[1742572226154,13.50849,1953.7,1953.6,31.98691]
[1742572227266,3.66049,1953.7,1953.6,31.98691]
[1742572227558,4.66259962,1953.7,1953.6,31.98691]
[1742572229966,4.66259962,1953.7,1953.6,30.69081]
[1742572230165,5.73600237,1953.7,1953.6,30.69081]
[1742572230366,5.73600237,1953.7,1953.6,32.01061]
[1742572231057,5.73600237,1953.7,1953.6,30.69081]
[1742572231266,12.3552572,1953.7,1953.6,30.66009824]
[1742572231470,5.73600237,1953.7,1953.6,30.66009824]
[1742572231771,1.02419,1953.7,1953.6,31.98489824]
[1742572232164,1.02419,1953.7,1953.6,33.00913824]
[1742572232367,0.00767794,1953.9,1953.8,1.02413]
[1742572232665,1.02413,1953.8,1953.7,2.34895]
[1742572233168,1.02413,1953.8,1953.7,1.3248]
[1742572233765,2.41523,1953.8,1953.7,1.3248]
[1742572234973,5.87323,1953.8,1953.7,1.3248]
[1742572235167,6.87589795,1953.8,1953.7,1.3248]
[1742572235368,7.94980852,1953.8,1953.7,1.3248]
[1742572235769,1.02419,1953.7,1953.6,30.66009824]
[1742572236071,4.11385795,1953.7,1953.6,30.66009824]
[1742572236273,5.18776852,1953.7,1953.6,30.66009824]
[1742572239669,4.49186852,1953.7,1953.6,30.66009824]
[1742572239976,3.10076852,1953.7,1953.6,31.68433824]
[1742572240272,1.07391057,1953.7,1953.6,34.89213824]
[1742572240475,2.09810057,1953.7,1953.6,35.59283824]
[1742572240677,1.02419,1953.7,1953.6,35.59283824]
[1742572242067,1.02419,1953.7,1953.6,34.56859824]
[1742572242273,1.02419,1953.7,1953.6,30.66009824]
[1742572242473,2.36429,1953.7,1953.6,30.66009824]
[1742572242670,4.3632034,1953.7,1953.6,30.66009824]
[1742572242976,5.47901045,1953.7,1953.6,30.66009824]
[1742572243188,21.12242162,1953.7,1953.6,30.66009824]
[1742572243474,21.12242162,1953.7,1953.6,28.27178833]
[1742572243671,21.12242162,1953.7,1953.6,25.96015833]
[1742572243866,21.12242162,1953.7,1953.6,21.95594141]
[1742572244071,21.12242162,1953.7,1953.6,17.97616459]
[1742572244674,1.02424,1953.6,1953.2,1.3654]
[1742572244864,1.0245,1953.1,1953.0,1.3654]
[1742572245778,2.4489,1953.1,1953.0,1.3654]
[1742572246272,2.53653719,1953.1,1953.0,1.3654]
[1742572246670,3.58095889,1953.1,1953.0,1.3654]
[1742572246974,7.02896259,1953.1,1953.0,1.3654]
[1742572247473,5.98454089,1953.1,1953.0,1.3654]
[1742572248579,4.4725,1953.1,1953.0,1.3654]
[1742572248977,4.4725,1953.1,1953.0,2.0294]
[1742572251083,4.4725,1953.1,1953.0,5.2372]
[1742572251380,3.448,1953.1,1953.0,6.26175]
[1742572252083,1.02447,1953.2,1953.0,6.26175]
[1742572252084,1.02442,1953.3,1953.2,1.02445]
[1742572252685,1.02445,1953.2,1953.1,0.6613]
[1742572253681,1.02445,1953.2,1953.1,1.6858]
[1742572253889,1.02445,1953.2,1953.1,0.6613]
[1742572254583,1.0245,1953.1,1953.0,3.8718]
[1742572255087,4.46449,1953.2,1953.0,3.8718]
[1742572255275,1.0245,1953.1,1953.0,3.8718]
[1742572256783,1.0245,1953.1,1953.0,4.89635]
[1742572257185,1.0245,1953.1,1953.0,0.664]
[1742572257592,2.4158,1953.1,1953.0,0.664]
[1742572258385,1.0245,1953.1,1953.0,0.664]
[1742572259988,1.0245,1953.1,1953.0,4.89635]
[1742572260193,4.46449,1953.2,1953.1,1.0245]
[1742572260489,1.0245,1953.1,1953.0,4.89631]
[1742572261091,1.0245,1953.1,1953.0,3.8718]
[1742572261287,1.0245,1953.1,1953.0,1.68855]
[1742572261489,1.0245,1953.1,1953.0,4.89635]
[1742572261694,1.0245,1953.1,1953.0,0.664]
[1742572262092,2.4096,1953.1,1953.0,0.664]
[1742572262288,1.0245,1953.1,1953.0,4.89635]
[1742572262687,4.46447,1953.2,1953.1,1.0245]
[1742572262990,1.02443,1953.3,1953.2,1.02442]
[1742572263384,1.02447,1953.2,1953.1,1.02446]
[1742572265395,1.02444,1953.3,1953.2,1.02445]
[1742572265786,0.6614,1953.6,1953.5,1.02429]
[1742572265987,1.06642943,1953.6,1953.5,4.23209]
[1742572266187,4.42248062,1953.9,1953.5,3.2078]
[1742572266491,0.08762442,1953.8,1953.7,4.23199]
[1742572267083,1.11175442,1953.8,1953.7,3.2078]
[1742572267283,0.08762442,1953.8,1953.7,4.23199]
[1742572267495,1.11175442,1953.8,1953.7,4.23199]
[1742572267698,1.11175308,1953.8,1953.7,4.23199]
[1742572268699,0.08762308,1953.8,1953.7,5.60099]
[1742572269197,0.00767794,1953.9,1953.8,1.02413]
[1742572269495,0.09529959,1953.9,1953.8,1.71153]
[1742572269886,1.11937959,1953.9,1953.8,1.71153]
[1742572270085,0.09529959,1953.9,1953.8,1.71153]
[1742572270788,1.04975684,1954.0,1953.9,1.02408]
[1742572270991,1.86282549,1954.4,1954.3,1.02387]
[1742572271194,1.86282549,1954.6,1954.3,3.2078]
[1742572271395,1.02377,1954.5,1954.4,2.41139]
[1742572271698,1.02377,1954.5,1954.4,2.7313]
[1742572271894,1.11074198,1954.5,1954.4,2.7313]
[1742572272095,2.47374198,1954.5,1954.4,2.7313]
[1742572272596,2.47374198,1954.5,1954.4,1.3437]
[1742572272792,2.47371004,1954.5,1954.4,1.3437]
[1742572273496,0.08694004,1954.5,1954.4,2.36752]
[1742572273886,1.11071004,1954.5,1954.4,2.36752]
[1742572274404,0.08694004,1954.5,1954.4,2.36752]
[1742572276101,1.39267794,1954.6,1954.5,1.02377]
[1742572276296,1.47961674,1954.6,1954.5,5.59657]
[1742572277098,1.39267794,1954.6,1954.5,5.59657]
[1742572277302,2.41643794,1954.6,1954.5,5.59657]
[1742572277701,0.00767794,1954.6,1954.5,5.59657]
[1742572278100,2.55869,1955.1,1954.7,2.55911]
[1742572278101,3.434,1955.1,1954.7,2.55911]
[1742572278293,1.45867063,1955.0,1954.9,3.2078]
[1742572278597,3.31009112,1955.0,1954.9,3.2078]
[1742572278896,4.33363112,1955.0,1954.9,4.23136]
[1742572279203,4.33363112,1955.0,1954.9,3.2078]
[1742572279502,1.93829112,1955.0,1954.9,4.23136]
[1742572279705,0.0869354,1955.0,1954.9,5.57006]
[1742572279998,0.0869354,1955.0,1954.9,9.00406]
[1742572281205,0.00767794,1955.1,1955.0,1.0235]
[1742572281401,7.41788973,1955.1,1954.7,3.2078]
[1742572281607,4.49710751,1955.0,1954.5,4.5842]
[1742572281802,2.5592,1954.7,1954.5,3.2078]
[1742572281999,1.11064179,1954.6,1954.5,3.2078]
[1742572282194,1.11064179,1954.6,1954.5,4.5465]
[1742572282695,0.08693179,1954.6,1954.5,5.57027]
[1742572282903,0.08693179,1954.6,1954.5,9.00427]
[1742572283303,1.02364,1954.8,1954.7,1.02366]
[1742572283505,2.08084172,1954.8,1954.7,4.23146]
[1742572284003,1.05720172,1954.8,1954.7,5.54356]
[1742572284406,3.32207575,1954.9,1954.8,1.02361]
[1742572284610,1.02361,1954.8,1954.7,5.54352]
[1742572284909,1.11054555,1954.8,1954.7,5.54352]
[1742572285304,1.11054555,1954.8,1954.7,1.3121]
[1742572285509,1.02371,1954.6,1954.5,3.2078]
[1742572285811,1.11064555,1954.6,1954.5,5.59697]
[1742572286003,1.11064555,1954.6,1954.5,4.5732]
[1742572286303,2.51794724,1954.6,1954.5,4.5732]
[1742572286496,1.49423724,1954.6,1954.5,5.59697]
[1742572286700,2.64622724,1954.6,1954.3,3.91487794]
[1742572286912,1.02382,1954.4,1954.3,0.00767794]
[1742572287112,1.11075724,1954.4,1954.3,3.21547794]
[1742572287307,1.11075724,1954.4,1954.3,0.00767794]
[1742572287707,1.11076077,1954.4,1954.3,0.00767794]
[1742572287906,2.51806077,1954.4,1954.3,0.00767794]
[1742572288414,2.55989,1954.2,1953.9,3.2078]
[1742572288603,1.02408,1953.9,1953.8,2.41981]
[1742572288802,1.11102077,1953.9,1953.8,2.41981]
[1742572289006,1.11102077,1953.9,1953.8,5.62761]
[1742572289805,1.11102077,1953.9,1953.8,4.6035]
[1742572290000,1.11102077,1953.9,1953.8,1.3957]
[1742572290212,1.11102077,1953.9,1953.8,5.62763]
[1742572290898,1.02408,1953.9,1953.8,4.6035]
[1742572291105,1.1110244,1953.9,1953.8,4.6035]
[1742572292210,1.1110244,1953.9,1953.8,5.62763]
[1742572293309,1.02413,1953.8,1953.7,0.00767794]
[1742572293509,1.1110744,1953.8,1953.7,0.00767794]
[1742572294311,4.5450744,1953.8,1953.7,0.00767794]
[1742572294618,1.02429,1953.5,1953.4,1.3231]
[1742572296207,3.434,1953.6,1953.3,0.00767794]
[1742572296208,1.02434,1953.4,1953.3,0.00767794]
[1742572296613,1.02434,1953.4,1953.3,1.32977794]
[1742572296914,1.02434,1953.4,1953.3,4.53757794]
[1742572297215,4.45834,1953.4,1953.3,0.00767794]
[1742572297411,4.45834,1953.4,1952.9,1.71169]
[1742572297412,2.56115,1953.2,1952.7,1.66788]
[1742572297715,1.02465,1952.9,1952.8,40.8]
[1742572297911,3.434,1953.1,1952.8,41.82463]
[1742572298115,1.0246,1952.9,1952.8,40.8]
[1742572298306,1.0246,1952.9,1952.7,4.87567]
[1742572298505,1.0246,1952.9,1952.7,4.88334794]
[1742572300011,1.02466,1952.8,1952.7,4.88335794]
[1742572301006,0.70987794,1953.0,1952.7,3.85867794]
[1742572301314,1.02465,1952.9,1952.7,45.68335794]
[1742572301619,1.02466,1952.8,1952.7,45.68335794]
[1742572302507,0.70987794,1953.0,1952.7,44.65867794]
[1742572302711,1.02466,1952.8,1952.7,45.68334794]
[1742572303312,1.02462,1952.9,1952.8,1.02463]
[1742572304414,1.02466,1952.8,1952.7,44.65867794]
[1742572304620,1.02466,1952.8,1952.7,40.80767794]
[1742572304814,1.02466,1952.8,1952.7,3.21547794]
[1742572305020,1.02487,1952.4,1952.3,0.6688]
[1742572305219,1.02492,1952.3,1952.2,4.23276]
[1742572305416,1.02492,1952.3,1952.2,45.03276]
[1742572306624,1.02492,1952.3,1952.2,44.0078]
[1742572306918,1.02492,1952.3,1952.2,3.2078]
[1742572309422,2.31711,1952.4,1952.3,1.02492]
[1742572309725,1.02492,1952.3,1952.2,4.5773]
[1742572309920,1.02492,1952.3,1952.2,5.60227]
[1742572310324,1.02492,1952.3,1952.2,4.5773]
[1742572310528,4.7578,1952.5,1952.4,1.02487]
[1742572310819,3.435,1952.5,1952.4,4.23267]
[1742572311024,1.02481,1952.5,1952.4,4.23263]
[1742572312124,1.02481,1952.5,1952.4,4.23264]
[1742572312325,1.02481,1952.5,1952.4,3.2078]
[1742572312527,2.39931,1952.5,1952.4,3.2078]
[1742572312730,2.39931,1952.5,1952.4,5.66077]
[1742572313427,2.39931,1952.5,1952.4,4.6359]
[1742572313631,2.39931,1952.5,1952.4,5.66077]
[1742572314329,13.284,1952.6,1952.5,1.02481]
[1742572314330,14.30881,1952.6,1952.5,1.02481]
[1742572314524,14.30881,1952.6,1952.5,2.32721]
[1742572315028,9.848,1952.6,1952.5,2.32721]
[1742572315328,1.02471,1952.7,1952.6,1.02474]
[1742572315521,1.02471,1952.7,1952.6,4.23254]
[1742572315721,1.02471,1952.7,1952.6,3.2078]
[1742572315918,1.02476,1952.6,1952.5,1.3024]
[1742572316428,1.02487,1952.4,1952.3,7.66867]
[1742572316931,1.02487,1952.4,1952.3,4.23267]
[1742572317822,1.426,1952.5,1952.4,1.02487]
[1742572317823,2.45086,1952.5,1952.4,1.02487]
[1742572318030,1.02478,1952.6,1952.5,1.02477]
[1742572318332,1.02478,1952.6,1952.5,4.23257]
[1742572319932,1.02481,1952.5,1952.4,2.34882]
[1742572320130,2.40321,1952.5,1952.4,5.55662]
[1742572320325,1.0248,1952.6,1952.4,5.55662]
[1742572320530,1.0248,1952.6,1952.5,1.02481]
[1742572320832,1.0248,1952.6,1952.5,2.35531]
[1742572321033,1.0248,1952.6,1952.5,1.3305]
[1742572322437,1.0248,1952.6,1952.5,2.35531]
[1742572322834,1.0248,1952.6,1952.5,1.3305]
[1742572323340,1.02481,1952.5,1952.4,50.0]
[1742572323537,1.02481,1952.5,1952.4,54.23267]
[1742572324638,2.41931,1952.6,1952.5,1.02481]
[1742572324839,2.41931,1952.6,1952.5,2.45061]
[1742572325237,1.0247,1952.8,1952.5,1.4258]
[1742572325427,2.40035,1952.9,1952.8,1.02466]
[1742572325740,0.00767794,1953.0,1952.9,1.0246]
[1742572325935,0.00767794,1953.0,1952.9,4.2324]
[1742572326531,1.0246,1952.9,1952.8,1.3411]
[1742572326733,0.00767794,1953.0,1952.5,4.23259]
[1742572326734,4.73197794,1953.0,1952.5,4.23259]
[1742572327025,1.02471,1952.7,1952.6,1.3411]
[1742572327429,2.31301,1952.7,1952.6,1.3411]
[1742572328138,2.31301,1952.7,1952.6,2.36586]
[1742572328534,2.31301,1952.7,1952.6,1.3411]
[1742572330438,1.2883,1952.7,1952.4,50.0]
[1742572330637,1.02481,1952.5,1952.4,51.312]
[1742572330836,1.02481,1952.6,1952.4,51.312]
[1742572331146,2.42741,1952.6,1952.5,4.23259]
[1742572331340,1.02475,1952.7,1952.6,1.02474]
[1742572331541,2.38895,1952.7,1952.6,1.02474]
[1742572332045,1.3642,1952.7,1952.5,4.53]
[1742572332237,1.02476,1952.6,1952.5,5.55478]
[1742572332442,2.38895,1952.7,1952.6,1.02476]
[1742572332635,1.02476,1952.6,1952.5,4.53]
[1742572332834,2.38896,1952.6,1952.5,4.53]
[1742572333128,2.38896,1952.6,1952.5,5.55481]
[1742572333944,2.38896,1952.6,1952.5,4.53]
[1742572334137,2.38896,1952.6,1952.5,1.3222]
[1742572334442,5.82496,1952.6,1952.5,5.55481]
[1742572334639,4.8002,1952.6,1952.5,5.55481]
[1742572334828,4.46076,1952.6,1952.5,5.55481]
[1742572335036,3.436,1952.6,1952.5,5.55481]
[1742572335340,1.02476,1952.6,1952.5,5.55481]
[1742572335542,2.36095,1952.7,1952.6,1.02476]
[1742572336645,2.36095,1952.7,1952.6,2.37536]
[1742572336846,1.02475,1952.7,1952.6,1.3506]
[1742572337346,2.56181,1952.7,1952.4,50.0]
[1742572337540,1.02481,1952.5,1952.4,51.3911]
[1742572337749,1.02481,1952.5,1952.4,50.0]
[1742572337943,1.70141,1952.5,1952.4,48.8779774]
[1742572338136,3.02701,1952.5,1952.4,48.8779774]
[1742572338341,5.07310653,1952.5,1952.4,47.59603396]
[1742572338539,6.23966797,1952.5,1952.4,47.59603396]
[1742572339236,5.26275985,1952.5,1952.4,47.59603396]
[1742572339641,6.32587293,1952.5,1952.4,47.59603396]
[1742572340043,6.23888069,1952.5,1952.4,47.59603396]
[1742572340235,6.23888069,1952.5,1952.4,50.80383396]
[1742572340236,5.26275985,1952.5,1952.4,50.80383396]
[1742572340842,2.23574985,1952.5,1952.4,51.82870396]
[1742572341042,1.16656144,1952.5,1952.4,53.16760396]
[1742572341542,2.56906794,1953.0,1952.6,1.02474]
[1742572341543,1.02474,1952.7,1952.6,1.02474]
[1742572341848,1.02474,1952.7,1952.6,4.23254]
[1742572342645,1.3928,1952.7,1952.6,4.23254]
[1742572343444,2.89250179,1952.9,1952.6,3.2078]
[1742572343648,7.66430301,1952.9,1952.8,3.2078]
[1742572343949,1.02466,1952.8,1952.7,1.3608]
[1742572344144,2.40336,1952.8,1952.7,2.38551]
[1742572344344,2.40336,1952.8,1952.7,5.59331]
[1742572345447,1.02466,1952.8,1952.7,5.59331]
[1742572345748,1.02466,1952.8,1952.7,4.5686]
[1742572345948,2.40336,1952.8,1952.7,5.59331]
[1742572346336,5.12025,1952.9,1952.8,1.02466]
[1742572346651,6.5136,1952.9,1952.8,1.3328]
[1742572346951,8.74634297,1952.9,1952.8,1.3328]
[1742572347146,8.74634297,1952.9,1952.8,2.35746]
[1742572347352,5.489,1952.9,1952.8,2.35746]
[1742572347654,1.0246,1952.9,1952.8,2.35746]
[1742572347848,1.0246,1952.9,1952.8,3.70033]
[1742572348053,1.0246,1952.9,1952.8,2.6757]
[1742572348456,3.26491364,1953.0,1952.8,2.6757]
[1742572348756,2.24032364,1953.0,1952.9,2.3574]
[1742572348949,1.07503621,1953.0,1952.9,5.5652]
[1742572349350,0.00767794,1953.0,1952.9,5.5652]
[1742572351657,1.03222794,1953.0,1952.9,1.3328]
[1742572351856,1.73792794,1953.0,1952.9,1.3328]
[1742572352553,4.23209,1953.5,1953.4,35.30294602]
[1742572352856,4.23209,1953.5,1953.4,7.63549089]
[1742572352857,7.75504276,1953.5,1953.4,7.63549089]
[1742572353051,10.25504276,1953.5,1953.4,4.80393089]
[1742572353255,1.02455,1953.0,1952.9,1.3328]
[1742572353455,1.02471,1952.7,1952.5,4.5749]
[1742572353762,1.0246,1952.9,1952.8,0.00767794]
[1742572354554,3.5246,1952.9,1952.8,0.00767794]
[1742572355253,1.02492,1952.3,1952.2,0.6716]
[1742572356255,1.02492,1952.3,1952.2,1.69657]
[1742572356756,1.02492,1952.3,1952.2,3.09787]
[1742572357062,2.18982937,1952.5,1952.3,1.02492]
[1742572357356,4.60096937,1952.6,1952.4,1.02483]
[1742572357558,1.02481,1952.5,1952.4,4.23267]
[1742572357761,1.02481,1952.5,1952.4,3.2078]
[1742572357948,1.02492,1952.3,1952.2,5.13255]
[1742572358151,1.02492,1952.3,1952.2,4.90434]
[1742572358354,1.02492,1952.3,1952.2,1.69654]
[1742572358559,1.02492,1952.3,1952.2,4.90434]
[1742572359255,2.3567,1952.4,1952.3,1.02492]
[1742572359457,1.16496937,1952.5,1952.4,1.02487]
[1742572359656,1.16496937,1952.5,1952.4,4.23267]
[1742572359856,1.02481,1952.5,1952.4,4.23267]
[1742572360964,5.99793,1952.6,1952.2,3.8794]
[1742572361170,1.02492,1952.3,1952.2,3.8794]
[1742572361556,1.02492,1952.3,1952.2,4.90437]
[1742572361964,1.02492,1952.3,1952.2,3.8794]
[1742572362764,2.35671,1952.4,1952.2,4.90437]
[1742572363258,2.18894393,1952.5,1952.3,1.02492]
[1742572363458,1.16411393,1952.5,1952.4,3.2078]
[1742572363662,2.18892393,1952.5,1952.4,4.23267]
[1742572363966,1.02481,1952.5,1952.4,3.2078]
[1742572364165,2.44011,1952.5,1952.4,4.23267]
[1742572364558,1.13080003,1952.5,1952.4,4.23267]
[1742572364759,4.46079,1952.6,1952.4,3.2078]
[1742572364962,4.46079,1952.6,1952.5,1.02481]
[1742572365162,6.86277122,1952.6,1952.5,1.02481]
[1742572365563,2.82573614,1952.6,1952.4,3.2078]
[1742572365758,1.69499063,1952.6,1952.5,1.73741]
[1742572365954,2.32478428,1952.6,1952.5,1.73741]
[1742572366474,1.05354857,1952.6,1952.5,5.17341]
[1742572366656,1.27123571,1952.8,1952.5,7.67341]
[1742572366859,1.27123571,1953.0,1952.9,1.0246]
[1742572367064,1.27123571,1953.0,1952.9,4.2324]
[1742572367574,0.00767794,1953.1,1953.0,1.02455]
[1742572367756,0.00767794,1953.1,1953.0,1.70595]
[1742572368068,0.00767794,1953.1,1952.9,1.7378]
[1742572368069,1.02455,1953.0,1952.9,1.7378]
[1742572368268,1.02455,1953.0,1952.9,0.7132]
[1742572368471,2.34095,1953.0,1952.9,1.7378]
[1742572368680,3.41759689,1953.1,1953.0,1.02455]
[1742572368870,2.26221546,1953.1,1953.0,1.02455]
[1742572369066,0.00767794,1953.1,1953.0,1.02455]
[1742572369967,0.00767794,1953.1,1953.0,2.38385]
[1742572373967,0.00767794,1953.1,1953.0,5.81885]
[1742572375276,2.35157794,1953.1,1953.0,2.38385]
[1742572375669,3.88836794,1953.1,1952.8,1.02463]
[1742572375962,1.3194,1953.0,1952.9,5.5382]
[1742572376166,0.00767794,1953.1,1953.0,1.02455]
[1742572376369,0.00767794,1953.1,1953.0,2.98405]
[1742572377375,1.03217794,1953.1,1953.0,2.98405]
[1742572377678,0.00767794,1953.1,1953.0,2.98405]
[1742572377876,1.03217794,1953.1,1953.0,2.98405]
[1742572378075,0.00767794,1953.1,1952.8,1.02462]
[1742572378371,1.4173,1953.0,1952.9,5.6421]
[1742572378578,0.00767794,1953.1,1953.0,1.02455]